fUST/lending_fUST_20251002
["ID","MTS","AMOUNT","RATE_DAILY","PERIOD"]
[388727466,1759338647653,-634.97024081,0.00019873,2]
[388727467,1759338647662,-440.29279929,0.00019873,2]
[388727468,1759338647671,-500.0,0.00019873,2]
[388727469,1759338647681,-500.0,0.00019873,2]
[388727470,1759338647690,-500.0,0.00019873,2]
[388727471,1759338647699,-500.0,0.00019873,2]
[388727472,1759338647708,-500.0,0.00019873,2]
[388727473,1759338647718,-500.0,0.00019873,2]
[388727474,1759338647727,-500.0,0.00019873,2]
[388727475,1759338647738,-500.0,0.00019873,2]
[388727476,1759338647747,-500.0,0.00019873,2]
[388727477,1759338647756,-500.0,0.00019873,2]
[388727478,1759338647765,-500.0,0.00019873,2]
[388727479,1759338647775,-511.41131084,0.00019873,2]
[388727480,1759338647784,-500.0,0.00019873,2]
[388727481,1759338647794,-500.0,0.00019873,2]
[388727482,1759338647803,-500.0,0.00019873,2]
[388727483,1759338647812,-500.0,0.00019873,2]
[388727484,1759338647821,-3809.19804105,0.00019876,2]
[388727485,1759338647831,-151.0,0.00019888,2]
[388727486,1759338647840,-151.0,0.00019888,2]
[388727487,1759338647849,-151.0,0.00019888,2]
[388727488,1759338647858,-151.0,0.00019888,2]
[388727489,1759338647867,-151.0,0.00019888,2]
[388727490,1759338647876,-152.58173525,0.00019888,2]
[388727491,1759338647885,-370000.0,0.000199,2]
[388727492,1759338647894,-180688.85147712,0.00019975,2]
[388727493,1759338647903,-1445.5092195,0.0001998,2]
[388727494,1759338647912,-24494.73906876,0.0001999,2]
[388727495,1759338647921,-151.0,0.0002,3]
[388727496,1759338647933,-500.0,0.0002,2]
[388727497,1759338647946,-500.0,0.0002,2]
[388727498,1759338647955,-500.0,0.0002,2]
[388727499,1759338647966,-500.0,0.0002,2]
[388727500,1759338647975,-385.74,0.0002,2]
[388727501,1759338647987,-500.0,0.0002,2]
[388727502,1759338647996,-500.0,0.0002,2]
[388727503,1759338648005,-500.0,0.0002,2]
[388727504,1759338648015,-500.0,0.0002,2]
[388727505,1759338648024,-500.0,0.0002,2]
[388727506,1759338648033,-500.0,0.0002,2]
[388727507,1759338648042,-500.0,0.0002,2]
[388727508,1759338648051,-500.0,0.0002,2]
[388727509,1759338648060,-500.0,0.0002,2]
[388727510,1759338648070,-500.0,0.0002,2]
[388727511,1759338648079,-500.0,0.0002,2]
[388727512,1759338648094,-500.0,0.0002,2]
[388727513,1759338648103,-500.0,0.0002,2]
[388727514,1759338648112,-500.0,0.0002,2]
[388727515,1759338648121,-500.0,0.0002,2]
[388727516,1759338648131,-500.0,0.0002,2]
[388727517,1759338648140,-767.28,0.0002,2]
[388727518,1759338648149,-500.0,0.0002,2]
[388727519,1759338648159,-500.0,0.0002,2]
[388727520,1759338648168,-500.0,0.0002,2]
[388727521,1759338648177,-453.09,0.0002,2]
[388727522,1759338648186,-248.04,0.0002,2]
[388727523,1759338648195,-500.0,0.0002,2]
[388727524,1759338648205,-500.0,0.0002,2]
[388727525,1759338648215,-500.0,0.0002,2]
[388727526,1759338648224,-669.43,0.0002,2]
[388727527,1759338648233,-500.0,0.0002,2]
[388727528,1759338648242,-222.3,0.0002,2]
[388727529,1759338648252,-755.67,0.0002,2]
[388727530,1759338648261,-500.0,0.0002,2]
[388727531,1759338648271,-500.0,0.0002,2]
[388727532,1759338648281,-500.0,0.0002,2]
[388727533,1759338648291,-500.0,0.0002,2]
[388727534,1759338648300,-432.7,0.0002,2]
[388727535,1759338648310,-500.0,0.0002,2]
[388727536,1759338648320,-912.45,0.0002,2]
[388727537,1759338648329,-500.0,0.0002,2]
[388727538,1759338648338,-335.99,0.0002,2]
[388727539,1759338648347,-500.0,0.0002,2]
[388727540,1759338648356,-500.0,0.0002,2]
[388727541,1759338648365,-719.71,0.0002,2]
[388727542,1759338648374,-802.46,0.0002,2]
[388727543,1759338648383,-500.0,0.0002,2]
[388727544,1759338648391,-500.0,0.0002,2]
[388727545,1759338648400,-500.0,0.0002,2]
[388727546,1759338648409,-500.0,0.0002,2]
[388727547,1759338648418,-500.0,0.0002,2]
[388727548,1759338648426,-500.0,0.0002,2]
[388727549,1759338648435,-500.0,0.0002,2]
[388727550,1759338648444,-500.0,0.0002,2]
[388727551,1759338648453,-1490.63,0.0002,2]
[388727552,1759338648463,-500.0,0.0002,2]
[388727553,1759338648472,-238.91,0.0002,2]
[388727554,1759338648482,-532.31,0.0002,2]
[388727555,1759338648492,-155.80833337,0.0002,2]
[388727556,1759338648501,-798.32,0.0002,2]
[388727557,1759338648510,-1983.5,0.0002,2]
[388727558,1759338648519,-500.0,0.0002,2]
[388727559,1759338648528,-704.92,0.0002,2]
[388727560,1759338648537,-500.0,0.0002,2]
[388727561,1759338648547,-777.53,0.0002,2]
[388727562,1759338648556,-1142.41,0.0002,2]
[388727563,1759338648565,-500.0,0.0002,2]
[388727564,1759338648574,-500.0,0.0002,2]
[388727565,1759338648583,-500.0,0.0002,2]
[388727566,1759338648593,-500.0,0.0002,2]
[388727567,1759338648602,-500.0,0.0002,2]
[388727568,1759338648611,-622.32,0.0002,2]
[388727569,1759338648620,-1074.91,0.0002,2]
[388727570,1759338648630,-500.0,0.0002,2]
[388727571,1759338648639,-500.0,0.0002,2]
[388727572,1759338648648,-500.0,0.0002,2]
[388727573,1759338648657,-500.0,0.0002,2]
[388727574,1759338648667,-500.0,0.0002,2]
[388727575,1759338648676,-4143.91,0.0002,2]
[388727576,1759338648685,-500.0,0.0002,2]
[388727577,1759338648695,-500.0,0.0002,2]
[388727578,1759338648704,-931.36,0.0002,2]
[388727579,1759338648713,-730.65,0.0002,2]
[388727580,1759338648722,-1892.91,0.0002,2]
[388727581,1759338648730,-500.0,0.0002,2]
[388727582,1759338648740,-604.63,0.0002,2]
[388727583,1759338648749,-635.29,0.0002,2]
[388727584,1759338648759,-539.85,0.0002,2]
[388727585,1759338648768,-1715.44,0.0002,2]
[388727586,1759338648777,-480.0,0.0002,2]
[388727587,1759338648787,-500.0,0.0002,2]
[388727588,1759338648796,-500.0,0.0002,2]
[388727589,1759338648805,-247.83752247,0.0002,2]
[388727590,1759338648814,-500.0,0.0002,2]
[388727591,1759338648823,-954.55,0.0002,2]
[388727592,1759338648832,-500.0,0.0002,2]
[388727593,1759338648841,-500.0,0.0002,2]
[388727594,1759338648851,-500.0,0.0002,2]
[388727595,1759338648860,-500.0,0.0002,2]
[388727596,1759338648869,-500.0,0.0002,2]
[388727597,1759338648878,-500.0,0.0002,2]
[388727598,1759338648887,-500.0,0.0002,2]
[388727599,1759338648897,-567.2,0.0002,2]
[388727600,1759338648906,-502.6,0.0002,2]
[388727601,1759338648915,-500.0,0.0002,2]
[388727602,1759338648924,-672.64,0.0002,2]
[388727603,1759338648936,-500.0,0.0002,2]
[388727604,1759338648946,-500.0,0.0002,2]
[388727605,1759338648954,-500.0,0.0002,2]
[388727606,1759338648964,-1329.93,0.0002,2]
[388727607,1759338648975,-888.22,0.0002,2]
[388727608,1759338648983,-500.0,0.0002,2]
[388727609,1759338648992,-500.0,0.0002,2]
[388727610,1759338649001,-500.0,0.0002,2]
[388727611,1759338649012,-500.0,0.0002,2]
[388727612,1759338649021,-885.37,0.0002,2]
[388727613,1759338649030,-500.0,0.0002,2]
[388727614,1759338649039,-500.0,0.0002,2]
[388727615,1759338649048,-797.47,0.0002,2]
[388727616,1759338649057,-500.0,0.0002,2]
[388727617,1759338649067,-500.0,0.0002,2]
[388727618,1759338649077,-500.0,0.0002,2]
[388727619,1759338649086,-500.0,0.0002,2]
[388727620,1759338649096,-1765.36,0.0002,2]
[388727621,1759338649105,-562.34,0.0002,2]
[388727622,1759338649114,-576.21,0.0002,2]
[388727623,1759338649124,-687.77,0.0002,2]
[388727624,1759338649134,-646.32,0.0002,2]
[388727625,1759338649143,-500.0,0.0002,2]
[388727626,1759338649152,-421.44,0.0002,2]
[388727627,1759338649162,-634.17,0.0002,2]
[388727628,1759338649171,-646.63,0.0002,2]
[388727629,1759338649180,-500.0,0.0002,2]
[388727630,1759338649190,-500.0,0.0002,2]
[388727631,1759338649199,-2336.89,0.0002,2]
[388727632,1759338649207,-500.0,0.0002,2]
[388727633,1759338649217,-440.0,0.0002,2]
[388727634,1759338649226,-547.85327465,0.0002,2]
[388727635,1759338649235,-4000.0,0.0002,4]
[388727636,1759338649244,-500.0,0.0002,2]
[388727637,1759338649253,-500.0,0.0002,2]
[388727638,1759338649262,-1169.91,0.0002,2]
[388727639,1759338649271,-521.02,0.0002,2]
[388727640,1759338649280,-2575.73,0.0002,2]
[388727641,1759338649289,-151.0,0.0002,2]
[388727642,1759338649299,-151.0,0.0002,2]
[388727643,1759338649308,-151.0,0.0002,2]
[388727644,1759338649317,-151.0,0.0002,2]
[388727645,1759338649326,-500.0,0.0002,2]
[388727646,1759338649335,-500.0,0.0002,2]
[388727647,1759338649344,-500.0,0.0002,2]
[388727648,1759338649353,-500.0,0.0002,2]
[388727649,1759338649362,-1000.0,0.00020021,2]
[388727650,1759338649372,-798.5814752,0.00020021,2]
[388727651,1759338649381,-531.85,0.00020038,2]
[388727652,1759338649390,-151.0,0.000201,3]
[388727653,1759338649401,-3809.19804105,0.00020138,2]
[388727654,1759338649410,-1445.5092195,0.00020194,2]
[388727655,1759338649419,-151.0,0.000202,3]
[388727656,1759338649430,-599.87,0.00020272,2]
[388727657,1759338649439,-500.0,0.00020272,2]
[388727658,1759338649449,-1123.0,0.00020272,2]
[388727659,1759338649459,-500.0,0.00020272,2]
[388727660,1759338649469,-811.59,0.00020272,2]
[388727661,1759338649478,-500.0,0.00020272,2]
[388727662,1759338649488,-500.0,0.00020273,2]
[388727663,1759338649498,-500.0,0.00020273,2]
[388727664,1759338649508,-500.0,0.00020273,2]
[388727665,1759338649518,-500.0,0.00020273,2]
[388727666,1759338649527,-500.0,0.00020273,2]
[388727667,1759338649537,-500.0,0.00020273,2]
[388727668,1759338649547,-500.0,0.00020273,2]
[388727669,1759338649555,-500.0,0.00020273,2]
[388727670,1759338649564,-500.0,0.00020273,2]
[388727671,1759338649573,-500.0,0.00020273,2]
[388727672,1759338649583,-500.0,0.00020273,2]
[388727673,1759338649592,-500.0,0.00020273,2]
[388727674,1759338649602,-500.0,0.00020273,2]
[388727675,1759338649611,-500.0,0.00020273,2]
[388727676,1759338649620,-500.0,0.00020273,2]
[388727677,1759338649629,-153.218577,0.00020273,2]
[388727678,1759338649638,-440.0,0.00020273,2]
[388727679,1759338649648,-500.0,0.00020273,2]
[388727680,1759338649658,-500.0,0.00020273,2]
[388727681,1759338649667,-500.0,0.00020273,2]
[388727682,1759338649677,-767.28,0.00020273,2]
[388727683,1759338649686,-500.0,0.00020273,2]
[388727684,1759338649695,-500.0,0.00020273,2]
[388727685,1759338649704,-500.0,0.00020273,2]
[388727686,1759338649714,-500.0,0.00020273,2]
[388727687,1759338649723,-500.0,0.00020273,2]
[388727688,1759338649734,-360.0,0.00020273,2]
[388727689,1759338649743,-669.43,0.00020273,2]
[388727690,1759338649753,-500.0,0.00020273,2]
[388727691,1759338649762,-755.67,0.00020273,2]
[388727692,1759338649772,-500.0,0.00020273,2]
[388727693,1759338649781,-500.0,0.00020273,2]
[388727694,1759338649791,-500.0,0.00020273,2]
[388727695,1759338649801,-500.0,0.00020273,2]
[388727696,1759338649810,-500.0,0.00020273,2]
[388727697,1759338649820,-912.45,0.00020273,2]
[388727698,1759338649829,-580.88,0.00020273,2]
[388727699,1759338649839,-500.0,0.00020273,2]
[388727700,1759338649849,-500.0,0.00020273,2]
[388727701,1759338649860,-719.71,0.00020273,2]
[388727702,1759338649869,-802.46,0.00020273,2]
[388727703,1759338649878,-500.0,0.00020273,2]
[388727704,1759338649888,-500.0,0.00020273,2]
[388727705,1759338649898,-500.0,0.00020273,2]
[388727706,1759338649909,-500.0,0.00020273,2]
[388727707,1759338649919,-500.0,0.00020273,2]
[388727708,1759338649928,-500.0,0.00020273,2]
[388727709,1759338649940,-500.0,0.00020273,2]
[388727710,1759338649950,-500.0,0.00020273,2]
[388727711,1759338649959,-1490.63,0.00020273,2]
[388727712,1759338649968,-500.0,0.00020273,2]
[388727713,1759338649978,-532.31,0.00020273,2]
[388727714,1759338649990,-798.32,0.00020273,2]
[388727715,1759338650000,-1983.5,0.00020273,2]
[388727716,1759338650011,-500.0,0.00020273,2]
[388727717,1759338650025,-704.92,0.00020273,2]
[388727718,1759338650036,-500.0,0.00020273,2]
[388727719,1759338650045,-777.53,0.00020273,2]
[388727720,1759338650055,-1142.41,0.00020273,2]
[388727721,1759338650068,-500.0,0.00020273,2]
[388727722,1759338650078,-500.0,0.00020273,2]
[388727723,1759338650090,-500.0,0.00020273,2]
[388727724,1759338650100,-500.0,0.00020273,2]
[388727725,1759338650110,-500.0,0.00020273,2]
[388727726,1759338650119,-622.32,0.00020273,2]
[388727727,1759338650128,-1074.91,0.00020273,2]
[388727728,1759338650139,-500.0,0.00020273,2]
[388727729,1759338650150,-500.0,0.00020273,2]
[388727730,1759338650159,-500.0,0.00020273,2]
[388727731,1759338650168,-500.0,0.00020273,2]
[388727732,1759338650178,-500.0,0.00020273,2]
[388727733,1759338650187,-4143.91,0.00020273,2]
[388727734,1759338650197,-500.0,0.00020273,2]
[388727735,1759338650206,-500.0,0.00020273,2]
[388727736,1759338650216,-931.36,0.00020273,2]
[388727737,1759338650225,-730.65,0.00020273,2]
[388727738,1759338650234,-1892.91,0.00020273,2]
[388727739,1759338650244,-500.0,0.00020273,2]
[388727740,1759338650253,-604.63,0.00020273,2]
[388727741,1759338650262,-635.29,0.00020273,2]
[388727742,1759338650271,-539.85,0.00020273,2]
[388727743,1759338650280,-1715.44,0.00020273,2]
[388727744,1759338650289,-500.0,0.00020273,2]
[388727745,1759338650298,-500.0,0.00020273,2]
[388727746,1759338650307,-500.0,0.00020273,2]
[388727747,1759338650315,-954.55,0.00020273,2]
[388727748,1759338650324,-500.0,0.00020273,2]
[388727749,1759338650334,-500.0,0.00020273,2]
[388727750,1759338650343,-500.0,0.00020273,2]
[388727751,1759338650352,-500.0,0.00020273,2]
[388727752,1759338650362,-500.0,0.00020273,2]
[388727753,1759338650371,-500.0,0.00020273,2]
[388727754,1759338650380,-500.0,0.00020273,2]
[388727755,1759338650389,-567.2,0.00020273,2]
[388727756,1759338650399,-502.6,0.00020273,2]
[388727757,1759338650408,-500.0,0.00020273,2]
[388727758,1759338650417,-672.64,0.00020273,2]
[388727759,1759338650426,-500.0,0.00020273,2]
[388727760,1759338650436,-500.0,0.00020273,2]
[388727761,1759338650445,-500.0,0.00020273,2]
[388727762,1759338650455,-1329.93,0.00020273,2]
[388727763,1759338650465,-888.22,0.00020273,2]
[388727764,1759338650474,-500.0,0.00020273,2]
[388727765,1759338650484,-500.0,0.00020273,2]
[388727766,1759338650493,-500.0,0.00020273,2]
[388727767,1759338650502,-885.37,0.00020273,2]
[388727768,1759338650511,-500.0,0.00020273,2]
[388727769,1759338650520,-497.45,0.00020273,2]
[388727770,1759338650529,-797.47,0.00020273,2]
[388727771,1759338650538,-500.0,0.00020273,2]
[388727772,1759338650547,-500.0,0.00020273,2]
[388727773,1759338650555,-500.0,0.00020273,2]
[388727774,1759338650564,-500.0,0.00020273,2]
[388727775,1759338650574,-1765.36,0.00020273,2]
[388727776,1759338650584,-562.34,0.00020273,2]
[388727777,1759338650717,-576.21,0.00020273,2]
[388727778,1759338650733,-687.77,0.00020273,2]
[388727779,1759338650743,-646.32,0.00020273,2]
[388727780,1759338650752,-234.10147788,0.00020273,2]
[388727781,1759338650762,-634.17,0.00020273,2]
[388727782,1759338650771,-646.63,0.00020273,2]
[388727783,1759338650780,-500.0,0.00020273,2]
[388727784,1759338650789,-500.0,0.00020273,2]
[388727785,1759338650799,-2336.89,0.00020273,2]
[388727786,1759338650808,-500.0,0.00020273,2]
[388727787,1759338650817,-500.0,0.00020273,2]
[388727788,1759338650827,-500.0,0.00020273,2]
[388727789,1759338650836,-1169.91,0.00020273,2]
[388727790,1759338650845,-521.02,0.00020273,2]
[388727791,1759338650855,-2575.73,0.00020273,2]
[388727792,1759338650865,-500.0,0.00020273,2]
[388727793,1759338650874,-500.0,0.00020273,2]
[388727794,1759338650883,-500.0,0.00020273,2]
[388727795,1759338650892,-166.0,0.00020291,2]
[388727796,1759338650901,-151.0,0.000203,3]
[388727797,1759338650911,-151.0,0.000203,3]
[388727798,1759338650920,-2498.09079011,0.0002038,2]
[388727799,1759338650930,-151.0,0.000204,3]
[388727800,1759338650943,-3809.19804105,0.000204,2]
[388727801,1759338650952,-500.0,0.00020421,2]
[388727802,1759338650962,-1000.0,0.00020421,2]
[388727803,1759338650972,-1000.0,0.00020421,2]
[388727804,1759338650982,-1000.0,0.00020421,2]
[388727805,1759338650991,-1000.0,0.00020421,2]
[388727806,1759338651001,-500.0,0.00020421,2]
[388727807,1759338651010,-500.0,0.00020421,2]
[388727808,1759338651022,-1000.0,0.00020421,2]
[388727809,1759338651031,-1000.0,0.00020421,2]
[388727810,1759338651040,-1000.0,0.00020421,2]
[388727811,1759338651049,-1130.89369699,0.00020421,2]
[388727812,1759338651059,-500.0,0.00020421,2]
[388727813,1759338651070,-1006.06717383,0.00020421,2]
[388727814,1759338651079,-1000.0,0.00020421,2]
[388727815,1759338651091,-1000.0,0.00020421,2]
[388727816,1759338651100,-500.0,0.00020421,2]
[388727817,1759338651109,-10419.8356453,0.00020447,2]
[388727818,1759338651119,-500.0,0.00020473,2]
[388727819,1759338651128,-500.0,0.00020473,2]
[388727820,1759338651137,-500.0,0.00020473,2]
[388727821,1759338651146,-500.0,0.00020473,2]
[388727822,1759338651155,-500.0,0.00020473,2]
[388727823,1759338651164,-341.26036651,0.00020473,2]
[388727824,1759338651174,-500.0,0.00020473,2]
[388727825,1759338651183,-500.0,0.00020473,2]
[388727826,1759338651192,-500.0,0.00020473,2]
[388727827,1759338651202,-500.0,0.00020473,2]
[388727828,1759338651211,-200.01172182,0.00020473,2]
[388727829,1759338651220,-500.0,0.00020473,2]
[388727830,1759338651230,-291.0232396,0.00020473,2]
[388727831,1759338651239,-500.0,0.00020473,2]
[388727832,1759338651248,-500.0,0.00020473,2]
[388727833,1759338651257,-500.0,0.00020473,2]
[388727834,1759338651266,-518.29434462,0.00020473,2]
[388727835,1759338651275,-502.60943045,0.00020473,2]
[388727836,1759338651285,-200.0117218,0.00020473,2]
[388727837,1759338651295,-500.0,0.00020473,2]
[388727838,1759338651305,-176.23590451,0.00020473,2]
[388727839,1759338651314,-200.01019669,0.00020473,2]
[388727840,1759338651323,-500.0,0.00020473,2]
[388727841,1759338651332,-200.41102314,0.00020473,2]
[388727842,1759338651341,-500.0,0.00020473,2]
[388727843,1759338651350,-500.0,0.00020473,2]
[388727844,1759338651359,-200.0117218,0.00020473,2]
[388727845,1759338651369,-500.0,0.00020473,2]
[388727846,1759338651378,-200.01019669,0.00020473,2]
[388727847,1759338651387,-150.40881481,0.00020473,2]
[388727848,1759338651396,-553.47499876,0.00020473,2]
[388727849,1759338651406,-500.0,0.00020473,2]
[388727850,1759338651416,-487.30246011,0.00020473,2]
[388727851,1759338651427,-501.30909708,0.00020473,2]
[388727852,1759338651436,-500.0,0.00020473,2]
[388727853,1759338651446,-500.0,0.00020473,2]
[388727854,1759338651456,-500.0,0.00020473,2]
[388727855,1759338651465,-500.0,0.00020473,2]
[388727856,1759338651475,-500.0,0.00020473,2]
[388727857,1759338651484,-500.0,0.00020473,2]
[388727858,1759338651493,-500.0,0.00020473,2]
[388727859,1759338651503,-500.0,0.00020473,2]
[388727860,1759338651513,-500.0,0.00020473,2]
[388727861,1759338651522,-500.0,0.00020473,2]
[388727862,1759338651531,-500.0,0.00020473,2]
[388727863,1759338651540,-500.0,0.00020473,2]
[388727864,1759338651550,-500.0,0.00020473,2]
[388727865,1759338651559,-500.0,0.00020473,2]
[388727866,1759338651568,-500.0,0.00020473,2]
[388727867,1759338651577,-500.0,0.00020473,2]
[388727868,1759338651586,-500.0,0.00020473,2]
[388727869,1759338651595,-500.0,0.00020473,2]
[388727870,1759338651604,-500.0,0.00020473,2]
[388727871,1759338651613,-200.01019671,0.00020473,2]
[388727872,1759338651622,-500.0,0.00020473,2]
[388727873,1759338651631,-500.0,0.00020473,2]
[388727874,1759338651640,-256.69308645,0.00020473,2]
[388727875,1759338651649,-500.0,0.00020473,2]
[388727876,1759338651658,-471.20805777,0.00020473,2]
[388727877,1759338651667,-200.01019671,0.00020473,2]
[388727878,1759338651676,-500.0,0.00020473,2]
[388727879,1759338651685,-500.0,0.00020473,2]
[388727880,1759338651695,-500.0,0.00020473,2]
[388727881,1759338651704,-500.0,0.00020473,2]
[388727882,1759338651714,-500.0,0.00020473,2]
[388727883,1759338651723,-158.96308781,0.00020473,2]
[388727884,1759338651732,-500.0,0.00020473,2]
[388727885,1759338651742,-500.0,0.00020473,2]
[388727886,1759338651751,-151.0,0.00020473,2]
[388727887,1759338651760,-151.0,0.00020473,2]
[388727888,1759338651769,-175.057,0.0002049,2]
[388727889,1759338651778,-236835.14947221,0.000205,2]
[388727891,1759338653130,-500.0,0.00019178,2]
[388727892,1759338653140,-1456.89595442,0.00019452,2]
[388727893,1759338653152,-353.15404558,0.00019452,2]
[388727894,1759338653161,-500.0,0.00019452,2]
[388727895,1759338653170,-946.84595442,0.00019726,2]
[388727896,1759338653513,-500.0,0.00019178,2]
[388727897,1759338653522,-500.0,0.00019452,2]
[388727898,1759338653532,-863.20404558,0.00019726,2]
[388727899,1759338653541,-204.29,0.00019726,2]
[388727900,1759338653550,-150.0,0.0001988,2]
[388727901,1759338653560,-1810.05,0.0002,2]
[388727902,1759338653568,-1810.05,0.00020273,2]
[388727903,1759338653578,-16987.53647365,0.000205,2]
[388727904,1759338653589,-1313.02703024,0.000205,2]
[388727907,1759338751082,537.15107346,0.00019078,2]
[388727909,1759338792492,200.0,0.0002876,120]
[388727913,1759338863477,1000.0,0.00018233,2]
[388727919,1759338979882,640.853161,0.00018233,2]
[388727920,1759338980748,300.0,0.000182,2]
[388727921,1759338992658,300.0,0.000182,2]
[388727922,1759338995499,666.0,0.00018452,2]
[388727926,1759339006796,300.0,0.000182,2]
[388727927,1759339018886,300.0,0.000182,2]
[388727928,1759339023248,300.0,0.000182,2]
[388727929,1759339033508,300.0,0.000182,2]
[388727932,1759339037521,300.0,0.000182,2]
[388727933,1759339044033,300.0,0.000182,2]
[388727934,1759339049048,300.0,0.000182,2]
[388727935,1759339055152,300.0,0.000182,2]
[388727936,1759339059570,300.0,0.000182,2]
[388727937,1759339065481,300.0,0.000182,2]
[388727938,1759339076567,300.0,0.000182,2]
[388727939,1759339077509,300.0,0.000182,2]
[388727940,1759339088306,300.0,0.000182,2]
[388727941,1759339096728,300.0,0.000182,2]
[388727942,1759339098645,300.0,0.000182,2]
[388727944,1759339109003,300.0,0.000182,2]
[388727946,1759339120781,300.0,0.000182,2]
[388727947,1759339131585,300.0,0.000182,2]
[388727948,1759339138258,300.0,0.000182,2]
[388727949,1759339141884,300.0,0.000182,2]
[388727950,1759339150979,300.0,0.000182,2]
[388727951,1759339152828,300.0,0.000182,2]
[388727953,1759339161455,300.0,0.000182,2]
[388727955,1759339249707,183.805523,0.00018233,2]
[388727956,1759339322149,176.06,0.00019,2]
[388727958,1759339349434,339.43481762,0.00019079,2]
[388727959,1759339357766,1915.06742182,0.00019079,2]
[388727960,1759339422071,7234.17779289,0.00019078,2]
[388727961,1759339450947,183.45577325,0.00019078,2]
[388727963,1759339492769,395.15464727,0.00018443,2]
[388727964,1759339494730,1580.61858907,0.00018443,2]
[388727965,1759339497122,3556.3918254,0.00018443,2]
[388727966,1759339499891,6316.15188191,0.00018443,2]
[388727977,1759339524983,10008.0798238,0.00018204,2]
[388727988,1759339559522,17049.95852988,0.00019,2]
[388727990,1759339649098,-300.0,0.000191,2]
[388727991,1759339649117,-300.0,0.000191,2]
[388727992,1759339649135,-300.0,0.000191,2]
[388727993,1759339649155,-151.0,0.00019166,2]
[388727994,1759339649176,-151.0,0.00019166,2]
[388727995,1759339649201,-151.0,0.00019166,2]
[388727996,1759339649222,-151.0,0.00019166,2]
[388727997,1759339649243,-151.0,0.00019166,2]
[388727998,1759339649267,-152.58173525,0.00019166,2]
[388727999,1759339649288,-300.0,0.00019167,2]
[388728000,1759339649310,-3472.57537802,0.00019168,2]
[388728001,1759339649334,-287.18,0.00019168,3]
[388728002,1759339649353,-861.56,0.00019168,3]
[388728003,1759339649372,-253.279,0.00019177,2]
[388728004,1759339649392,-500.0,0.00019178,2]
[388728005,1759339649417,-367.94526028,0.00019178,2]
[388728006,1759339649436,-480.0,0.00019178,2]
[388728007,1759339649456,-500.0,0.00019178,2]
[388728008,1759339649475,-500.0,0.00019178,2]
[388728009,1759339649493,-500.0,0.00019178,2]